bitfinex/quotes_SOLUSD_20220211
["timestamp","ask_amount","ask_price","bid_price","bid_amount"]
[1644601730042,14.165,105.95,105.9,58.98813958]
[1644601732842,14.165,105.95,105.91,4.72]
[1644601733243,14.2048195,105.96,105.91,19.1349]
[1644601733445,0.0410195,105.97,105.91,19.1349]
[1644601733645,0.0410195,105.98,105.91,42.8977]
[1644601733843,0.0410195,105.97,105.91,42.8977]
[1644601734043,35.68896738,105.98,105.91,42.8977]
[1644601734243,0.0410195,105.97,105.91,42.8977]
[1644601734444,35.68896738,105.98,105.91,38.1777]
[1644601734642,0.0410195,105.97,105.91,38.1777]
[1644601734843,14.1623,105.97,105.91,38.1777]
[1644601735043,14.2033195,105.97,105.91,38.1777]
[1644601735247,0.0410195,105.97,105.92,10.719]
[1644601735445,0.0410195,105.99,105.93,14.159]
[1644601735644,74.75648581,106.05,105.94,4.716]
[1644601735645,0.0410195,106.01,105.94,4.716]
[1644601735844,0.0410195,105.99,105.95,37.57700957]
[1644601736047,0.0410195,106.01,105.96,4.716]
[1644601736248,38.84130043,106.03,105.96,4.966]
[1644601736453,0.0410195,106.02,105.96,4.966]
[1644601736648,38.84130043,106.03,105.96,4.716]
[1644601736848,0.0410195,106.02,105.96,18.8738]
[1644601737048,38.84130043,106.03,105.96,18.8738]
[1644601737349,14.1568,106.02,105.96,14.1578]
[1644601737548,14.1978195,106.02,105.96,14.1578]
[1644601741276,0.0410195,106.02,105.96,14.4078]
[1644601741475,0.0410195,106.03,105.97,4.716]
[1644601741676,0.0410195,106.02,105.98,14.1532]
[1644601741874,0.0410195,106.03,105.98,14.1532]
[1644601742075,0.0410195,106.04,105.98,14.1532]
[1644601742277,0.0410195,106.04,105.99,46.81802369]
[1644601742476,63.88056812,106.06,105.99,46.81802369]
[1644601742677,0.0410195,106.05,105.99,47.04402369]
[1644601742878,63.88056812,106.06,105.99,47.04402369]
[1644601743076,0.0410195,106.05,105.99,47.04402369]
[1644601743278,63.88056812,106.06,105.99,47.04402369]
[1644601743477,0.0410195,106.05,105.99,47.04402369]
[1644601743678,63.88056812,106.06,105.99,47.04402369]
[1644601743877,36.8639195,106.06,106.01,42.10444228]
[1644601744078,22.7070195,106.07,106.01,42.10444228]
[1644601744279,22.7070195,106.07,106.01,42.35444228]
[1644601744879,22.7070195,106.07,106.02,4.715]
[1644601745080,22.7070195,106.07,106.03,36.30921375]
[1644601745280,22.666,106.07,106.03,36.30921375]
[1644601746280,24.2976,106.1,106.03,50.45701375]
[1644601746281,0.0410195,106.09,106.03,50.45701375]
[1644601746481,0.0410195,106.08,106.03,50.45701375]
[1644601746682,0.0410195,106.09,106.03,50.45701375]
[1644601746883,36.20679519,106.09,106.03,50.45701375]
[1644601747085,38.4853195,106.1,106.03,50.45701375]
[1644601747292,14.1877195,106.1,106.03,50.70701375]
[1644601747486,0.0410195,106.1,106.03,50.70701375]
[1644601747899,0.0410195,106.11,106.04,10.714]
[1644601748085,0.0410195,106.13,106.06,14.1417]
[1644601748287,0.0410195,106.11,106.07,26.84459391]
[1644601748488,0.0410195,106.13,106.07,29.22826182]
[1644601748684,0.0410195,106.15,106.07,29.47826182]
[1644601748886,0.0410195,106.13,106.07,22.38259391]
[1644601749088,0.0410195,106.14,106.07,22.38259391]
[1644601749284,0.0410195,106.13,106.07,22.38259391]
[1644601749487,35.69584691,106.15,106.07,22.38259391]
[1644601749785,24.3447,106.17,106.07,16.13259391]
[1644601749786,39.70339045,106.13,106.07,16.13259391]
[1644601749986,39.66237095,106.13,106.07,16.13259391]
[1644601750189,42.08705836,106.13,106.07,16.13259391]
[1644601750388,39.70339045,106.13,106.07,16.13259391]
[1644601751691,53.84819045,106.13,106.07,16.13259391]
[1644601753796,53.84819045,106.13,106.07,16.38259391]
[1644601753992,53.84819045,106.13,106.07,16.13259391]
[1644601754293,53.84819045,106.13,106.05,4.712]
[1644601754493,53.84819045,106.13,106.03,18.362]
[1644601754693,53.84819045,106.13,106.04,6.0]
[1644601755294,53.84819045,106.13,106.05,46.65970812]
[1644601756299,53.84819045,106.13,106.05,46.90970812]
[1644601756494,53.84819045,106.13,106.05,46.65970812]
[1644601756694,56.23185836,106.13,106.04,6.0]
[1644601756895,13.65,106.12,106.04,6.0]
[1644601757096,14.1489,106.1,106.04,6.0]
[1644601757296,14.1489,106.1,106.03,4.712]
[1644601757695,14.1489,106.1,106.04,47.20515926]
[1644601758101,48.20233686,106.09,106.04,47.20515926]
[1644601758995,62.35093686,106.09,106.04,47.20515926]
[1644601760400,62.35093686,106.09,106.02,4.714]
[1644601760597,62.39195636,106.09,106.03,6.0]
[1644601762298,21.065187,106.08,106.03,6.0]
[1644601762597,53.67117363,106.07,106.03,6.0]
[1644601768506,53.67117363,106.07,106.01,4.714]
[1644601768705,21.6349,106.06,106.0,4.715]
[1644601768905,14.1551,106.05,105.98,4.716]
[1644601769111,13.65,106.04,105.96,27.4435]
[1644601769308,13.65,106.04,105.96,7.35800602]
[1644601769507,39.67977091,106.03,105.96,4.716]
[1644601769707,53.32977091,106.03,105.96,4.716]
[1644601770305,53.32977091,106.03,105.97,41.94172583]
[1644601770707,14.1586,106.02,105.97,41.94172583]
[1644601771405,39.67977091,106.03,105.97,41.94172583]
[1644601771606,39.67977091,106.03,105.99,45.72245902]
[1644601771809,53.79465141,106.03,105.99,45.72245902]
[1644601772208,23.4057195,106.04,105.99,45.72245902]
[1644601772410,0.0410195,106.04,105.99,45.72245902]
[1644601772716,23.5925195,106.06,105.99,45.97245902]
[1644601772912,0.0410195,106.05,105.99,45.97245902]
[1644601773109,23.5925195,106.06,105.99,45.97245902]
[1644601773310,35.79782468,106.05,105.99,45.97245902]
[1644601773711,49.99194418,106.05,105.99,60.12465902]
[1644601775211,49.99194418,106.05,106.0,4.716]
[1644601775409,49.95092468,106.05,106.01,35.05159011]
[1644601776010,49.95092468,106.05,105.99,14.1522]
[1644601776211,49.99194418,106.05,105.98,18.8688]
[1644601776414,49.99194418,106.05,105.98,14.1538]
[1644601776612,49.99194418,106.05,105.97,28.3315]
[1644601776812,74.20454418,106.05,105.97,28.3315]
[1644601777011,74.20454418,106.05,105.97,72.15136507]
[1644601777918,74.20454418,106.05,105.97,28.3315]
[1644601778114,90.23821209,106.05,105.97,23.6155]
[1644601778517,90.23821209,106.05,105.96,4.716]
[1644601778717,90.23821209,106.05,105.96,0.25]
[1644601779014,90.23821209,106.05,105.96,40.65023377]
[1644601779217,90.23821209,106.05,105.96,63.56583377]
[1644601780115,90.23821209,106.05,105.97,4.716]
[1644601784217,90.23821209,106.05,105.96,77.72253377]
[1644601784719,89.73821209,106.05,105.96,77.72253377]
[1644601785318,87.35454418,106.05,105.96,77.72253377]
[1644601785522,87.35454418,106.05,105.97,4.716]
[1644601785720,87.35454418,106.05,105.98,41.60573962]
[1644601786020,87.35454418,106.05,105.97,4.716]
[1644601786221,87.35454418,106.05,105.96,22.9156]
[1644601786424,87.35454418,106.05,105.96,23.1656]
[1644601787120,87.35454418,106.05,105.96,61.77069122]
[1644601787320,89.73821209,106.05,105.96,61.77069122]
[1644601787730,89.73821209,106.05,105.96,75.92739122]
[1644601788728,103.67611209,106.05,105.96,75.92739122]
[1644601788946,103.67611209,106.05,105.96,37.3223]
[1644601789527,103.67611209,106.05,105.96,0.25]
[1644601789727,66.392745,106.04,105.95,4.716]
[1644601789927,14.1609,106.02,105.95,4.716]
[1644601790128,45.81532905,106.01,105.94,27.6841]
[1644601790327,68.35692905,106.01,105.94,27.6841]
[1644601791429,68.35692905,106.01,105.95,39.76266689]
[1644601791929,57.08736351,105.99,105.94,27.6841]
[1644601793334,59.47103142,105.99,105.94,27.6841]
[1644601793535,59.47103142,105.99,105.94,4.716]
[1644601793732,59.47103142,105.99,105.92,4.718]
[1644601793933,59.47103142,105.99,105.92,10.718]
[1644601794134,59.47103142,105.99,105.92,4.718]
[1644601794535,82.49473142,105.99,105.92,4.718]
[1644601795133,80.11106351,105.99,105.92,4.718]
[1644601795535,80.11106351,105.99,105.92,40.9852546]
[1644601797239,80.11106351,105.99,105.92,4.718]
[1644601798242,80.11106351,105.99,105.92,50.90950083]
[1644601800439,80.11106351,105.99,105.92,4.718]
[1644601801743,80.11106351,105.99,105.91,68.5491222]
[1644601802545,80.11106351,105.99,105.91,6.0]
[1644601802747,82.49473142,105.99,105.91,6.0]
[1644601804368,58.069626,105.98,105.88,4.718]
[1644601804568,96.89923142,105.99,105.88,4.718]
[1644601804769,96.89923142,105.99,105.87,26.39870602]
[1644601804770,14.1727,105.94,105.87,23.7567]
[1644601804969,47.6587,105.94,105.87,0.024]
[1644601805169,50.04236791,105.94,105.86,0.024]
[1644601805473,34.97231609,105.93,105.86,0.024]
[1644601805971,34.97231609,105.93,105.86,39.50982732]
[1644601806175,14.1734,105.91,105.87,0.024]
[1644601806471,14.1734,105.91,105.87,4.721]
[1644601806472,49.2711395,105.91,105.87,4.721]
[1644601808074,49.2711395,105.91,105.86,44.23082732]
[1644601808271,49.2711395,105.91,105.86,39.73582732]
[1644601808874,49.2711395,105.91,105.86,39.48582732]
[1644601809471,80.723,105.94,105.86,53.90582732]
[1644601809472,8.753,105.94,105.86,53.90582732]
[1644601809672,8.753,105.94,105.87,10.745]
[1644601809875,8.753,105.94,105.87,24.395]
[1644601810075,8.753,105.94,105.87,24.645]
[1644601810275,8.753,105.94,105.87,27.28700602]
[1644601810473,43.88797414,105.93,105.89,14.1661]
[1644601811180,43.88797414,105.93,105.87,35.1857]
[1644601811384,43.88797414,105.93,105.89,6.0]
[1644601811576,43.88797414,105.93,105.87,35.1857]
[1644601811777,43.88797414,105.93,105.87,35.4357]
[1644601811977,43.88797414,105.93,105.87,79.11228709]
[1644601812184,43.88797414,105.93,105.87,78.86228709]
[1644601812381,58.05667414,105.93,105.87,93.03138709]
[1644601813579,58.05667414,105.93,105.87,93.00738709]
[1644601814378,58.05667414,105.93,105.87,49.3308]
[1644601814579,58.05667414,105.93,105.87,29.1617]
[1644601814878,58.05667414,105.93,105.87,29.1857]
[1644601815080,60.44034205,105.93,105.87,4.745]
[1644601815280,34.893552,105.92,105.87,4.721]
[1644601815484,43.25730252,105.91,105.87,4.721]
[1644601815681,11.531775,105.9,105.87,4.721]
[1644601816684,43.96173947,105.89,105.87,4.721]
[1644601816881,58.13663947,105.89,105.87,4.721]
[1644601817281,58.13663947,105.89,105.85,0.024]
[1644601818083,43.96173947,105.89,105.85,39.5586552]
[1644601818281,43.96173947,105.89,105.85,34.39981361]
[1644601818883,14.1723,105.9,105.85,48.57161361]
[1644601819083,14.1711,105.91,105.85,48.84561361]
[1644601819285,69.8206,105.93,105.85,48.84561361]
[1644601819286,60.8826,105.95,105.86,0.024]
[1644601819486,97.105,105.99,105.86,34.1877]
[1644601819686,69.0505,105.99,105.87,2.38366791]
[1644601819884,39.68444589,105.98,105.89,45.84790294]
[1644601820084,39.68444589,105.98,105.9,28.1617]
[1644601820287,14.1649,105.96,105.9,28.1617]
[1644601820484,36.05207328,105.95,105.9,23.4427]
[1644601821691,50.21767328,105.95,105.9,37.6074]
[1644601823289,50.21767328,105.95,105.9,23.4427]
[1644601823793,50.21767328,105.95,105.89,14.1666]
[1644601824093,50.21767328,105.95,105.87,7.38600602]
[1644601824291,50.21767328,105.95,105.88,5.14452471]
[1644601824691,50.21767328,105.95,105.88,19.56252471]
[1644601825192,50.21767328,105.95,105.88,14.418]
[1644601825393,50.21767328,105.95,105.89,46.44571545]
[1644601826393,59.4753,105.99,105.89,46.44571545]
[1644601826394,47.219,105.98,105.89,60.61241545]
[1644601826596,22.8314,105.99,105.89,60.86241545]
[1644601826894,22.8314,105.99,105.9,11.14550883]
[1644601827096,22.8314,105.99,105.91,4.719]
[1644601827295,42.7563157,105.98,105.92,40.03069028]
[1644601827494,45.13998361,105.98,105.91,4.969]
[1644601827694,14.163,105.97,105.91,19.1331]
[1644601828295,14.163,105.97,105.91,18.8831]
[1644601828495,39.23181796,105.96,105.91,18.8831]
[1644601828696,53.39571796,105.96,105.92,4.719]
[1644601828896,53.39571796,105.96,105.91,14.1641]
[1644601829098,53.39571796,105.96,105.92,35.60164831]
[1644601830600,14.1632,105.97,105.92,35.60164831]
[1644601831404,14.1632,105.97,105.92,49.76404831]
[1644601831600,59.52639969,105.97,105.92,50.01404831]
[1644601831798,45.36319969,105.97,105.93,4.719]
[1644601834003,45.36319969,105.97,105.94,41.24007422]
[1644601834304,14.1616,105.98,105.95,6.06439994]
[1644601835109,55.34377936,105.99,105.95,6.06439994]
[1644601843812,55.34377936,105.99,105.9,2.64200602]
[1644601843813,57.72744727,105.99,105.9,2.64200602]
[1644601844017,71.37744727,105.99,105.9,7.78230941]
[1644601844310,71.37744727,105.99,105.87,2.66600602]
[1644601844517,95.52234727,105.99,105.88,4.72]
[1644601844711,95.52234727,105.99,105.89,36.56595607]
[1644601844912,95.52234727,105.99,105.9,4.719]
[1644601845115,95.52234727,105.99,105.91,44.31044658]
[1644601846913,93.13867936,105.99,105.91,44.31044658]
[1644601847313,93.13867936,105.99,105.91,44.56044658]
[1644601849118,93.13867936,105.99,105.93,1.34096516]
[1644601849317,93.13867936,105.99,105.94,41.50581084]
[1644601851531,38.3052,105.99,105.94,46.22381084]
[1644601851721,14.1603,105.99,105.94,46.22381084]
[1644601851921,14.1603,105.99,105.94,47.564776]
[1644601852122,2.38366791,106.03,105.95,1.34096516]
[1644601852322,24.18013066,106.04,105.96,6.05696516]
[1644601852524,36.74500879,106.03,105.97,34.80968957]
[1644601852754,36.70397813,106.03,105.97,34.80968957]
[1644601852951,36.70397813,106.03,105.96,1.34096516]
[1644601852952,36.74500879,106.03,105.96,1.34096516]
[1644601853148,14.157,106.02,105.95,24.56586516]
[1644601853350,36.8214,106.02,105.95,24.56586516]
[1644601853950,37.1086641,106.01,105.95,59.67220168]
[1644601854151,31.030219,106.0,105.95,1.34096516]
[1644601854348,16.869919,105.99,105.94,1.34096516]
[1644601854550,40.090819,105.99,105.93,1.34096516]
[1644601854749,25.60456791,105.99,105.93,1.34096516]
[1644601854951,2.38366791,105.98,105.92,1.34096516]
[1644601855150,36.64782656,105.98,105.92,1.34096516]
[1644601855950,2.38366791,105.97,105.92,1.34096516]
[1644601856152,2.38366791,105.97,105.91,1.34096516]
[1644601856351,26.17166791,105.97,105.91,1.34096516]
[1644601856751,45.36525416,105.96,105.91,1.34096516]
[1644601857652,45.36525416,105.96,105.9,1.34096516]
[1644601857854,59.53315416,105.96,105.9,1.34096516]
[1644601858754,59.53315416,105.96,105.9,48.13875472]
[1644601858954,57.14948625,105.96,105.9,48.13875472]
[1644601859255,57.14948625,105.96,105.91,1.34096516]
[1644601860453,57.14948625,105.96,105.9,1.34096516]
[1644601860855,57.14948625,105.96,105.88,5.1477869]
[1644601861056,238.458231,105.95,105.87,2.66600602]
[1644601861254,14.1781,105.93,105.87,0.024]
[1644601861456,14.1781,105.93,105.83,0.024]
[1644601861457,35.734587,105.92,105.83,0.024]
[1644601861656,13.65,105.91,105.84,0.024]
[1644601861858,37.4147,105.91,105.82,0.024]
[1644601862055,39.79836791,105.91,105.82,0.024]
[1644601862255,2.38366791,105.9,105.82,0.024]
[1644601862455,44.33888371,105.89,105.82,41.25897853]
[1644601862759,14.1783,105.87,105.82,41.23497853]
[1644601862956,35.30120055,105.86,105.81,0.024]
[1644601863158,35.30120055,105.86,105.8,4.747]
[1644601863857,35.30120055,105.86,105.81,48.40067078]
[1644601864057,35.30120055,105.86,105.81,0.024]
[1644601864257,35.30120055,105.86,105.8,4.723]
[1644601864756,49.47970055,105.86,105.8,4.723]
[1644601865056,49.47970055,105.86,105.81,41.59902729]
[1644601865258,49.47970055,105.86,105.81,41.62302729]
[1644601865759,49.47970055,105.86,105.81,0.024]
[1644601865958,49.47970055,105.86,105.8,4.723]
[1644601866159,49.47970055,105.86,105.79,4.748]
[1644601866359,49.47970055,105.86,105.79,10.748]
[1644601866761,49.47970055,105.86,105.8,47.98412085]
[1644601866960,49.47970055,105.86,105.81,4.724]
[1644601867163,49.47970055,105.86,105.81,4.748]
[1644601868962,11.527397,105.85,105.81,4.748]
[1644601869162,14.1818,105.84,105.8,0.024]
[1644601869564,14.1818,105.84,105.77,10.749]
[1644601869766,14.1818,105.84,105.78,0.024]
[1644601869966,34.86348425,105.83,105.78,4.749]
[1644601870365,49.04638425,105.83,105.79,54.79126472]
[1644601870569,22.5951,105.85,105.8,4.725]
[1644601871569,22.5951,105.85,105.81,37.99204409]
[1644601871867,34.7070178,105.86,105.83,35.37182254]
[1644601872167,6.06439994,105.85,105.83,35.37182254]
[1644601873770,60.3456,105.88,105.83,35.37182254]
[1644601874271,16.03366791,105.92,105.83,35.62182254]
[1644601874472,36.53617996,105.93,105.85,42.41949869]
[1644601874671,36.53617996,105.93,105.86,0.024]
[1644601875470,36.53617996,105.93,105.87,43.47235068]
[1644601875671,36.53617996,105.93,105.87,43.49635068]
[1644601875870,50.70567996,105.93,105.87,43.49635068]
[1644601876870,50.70567996,105.93,105.87,0.024]
[1644601877070,50.70567996,105.93,105.86,0.024]
[1644601877876,53.08934787,105.93,105.86,0.024]
[1644601878879,53.024064,105.92,105.86,0.024]
[1644601879097,43.104964,105.91,105.86,0.024]
[1644601879302,17.359272,105.9,105.86,0.024]
[1644601879500,17.359272,105.9,105.84,0.024]
[1644601879501,19.74293991,105.9,105.84,0.024]
[1644601879699,37.56057054,105.89,105.84,0.024]
[1644601879900,37.56057054,105.89,105.83,4.721]
[1644601880205,14.1817,105.87,105.83,4.721]
[1644601880402,11.532838,105.86,105.83,4.721]
[1644601880801,37.93762424,105.84,105.83,4.721]
[1644601884905,20.24479994,105.85,105.83,4.721]
[1644601885206,20.24479994,105.85,105.81,48.22596349]
[1644601885407,20.24479994,105.85,105.8,4.724]
[1644601885609,20.24479994,105.85,105.79,0.024]
[1644601885804,20.24479994,105.85,105.79,6.024]
[1644601886405,37.08707725,105.84,105.8,38.84970376]
[1644601887306,14.1804,105.85,105.8,38.84970376]
[1644601887507,14.1785,105.86,105.81,4.724]
[1644601887707,14.1785,105.86,105.81,4.748]
[1644601888309,35.75398477,105.85,105.81,4.748]
[1644601888509,35.75398477,105.85,105.81,4.724]
[1644601888708,49.93388477,105.85,105.81,4.724]
[1644601890913,49.93388477,105.85,105.8,43.59770376]
[1644601892513,35.75398477,105.85,105.8,43.59770376]
[1644601892912,35.75398477,105.85,105.8,46.23970978]
[1644601893115,23.7972,105.87,105.8,46.48970978]
[1644601893315,23.7972,105.87,105.81,2.66600602]
[1644601893613,14.1755,105.89,105.82,4.724]
[1644601893913,14.1755,105.89,105.82,4.748]
[1644601894113,38.39167453,105.88,105.82,53.22017973]
[1644601894313,38.39167453,105.88,105.83,6.0]
[1644601895314,52.56727453,105.88,105.83,6.0]
[1644601900522,11.522408,105.87,105.83,6.0]
[1644601900721,11.522408,105.87,105.82,6.024]
[1644601900923,14.1787,105.86,105.82,6.024]
[1644601901322,40.41914093,105.85,105.82,6.024]
[1644601901521,3.03219997,105.84,105.82,6.024]
[1644601901722,3.03219997,105.84,105.82,6.0]
[1644601901923,85.709,105.89,105.83,4.724]
[1644601902323,85.709,105.89,105.83,4.748]
[1644601902324,11.522408,105.88,105.83,4.748]
[1644601902524,71.1766,105.87,105.8,2.64200602]
[1644601902730,27.8266,105.87,105.8,2.64200602]
[1644601902926,4.724,105.86,105.78,2.64200602]
[1644601903125,44.92206791,105.86,105.78,2.64200602]
[1644601903327,40.19806791,105.86,105.77,2.64200602]
[1644601903526,14.1829,105.84,105.77,49.6273649]
[1644601903727,44.79874436,105.83,105.77,46.98535888]
[1644601903927,40.07374436,105.83,105.77,46.98535888]
[1644601904125,40.07374436,105.83,105.77,49.6273649]
[1644601904524,40.07374436,105.83,105.77,46.98535888]
[1644601905427,54.25634436,105.83,105.76,2.64200602]
[1644601905627,45.837145,105.82,105.76,2.64200602]
[1644601905826,13.705305,105.81,105.76,2.64200602]
[1644601906026,13.705305,105.81,105.74,2.64200602]
[1644601906027,4.726,105.8,105.74,2.64200602]
[1644601906231,42.4039,105.8,105.73,2.64200602]
[1644601906429,36.33347505,105.79,105.72,48.52368649]
[1644601906626,4.727,105.78,105.72,48.52368649]
[1644601906827,14.1915,105.77,105.72,2.64200602]
[1644601907227,14.1915,105.77,105.71,2.64200602]
[1644601907429,11.527815,105.76,105.71,2.64200602]
[1644601907628,16.255815,105.76,105.69,2.64200602]
[1644601907829,46.81460422,105.75,105.69,2.64200602]
[1644601908028,4.729,105.74,105.69,2.64200602]
[1644601908429,14.1964,105.73,105.68,2.64200602]
[1644601908628,14.1964,105.73,105.67,7.37100602]
[1644601908831,14.1964,105.73,105.68,6.0]
[1644601909128,38.94256397,105.72,105.68,6.0]
[1644601909728,14.1948,105.74,105.69,46.84951815]
[1644601909928,18.38,105.75,105.69,51.57951815]
[1644601909929,13.65,105.75,105.69,51.57951815]
[1644601910131,22.6705,105.76,105.69,51.57951815]
[1644601910536,4.729,105.75,105.69,46.84951815]
[1644601911035,41.79634356,105.74,105.69,46.84951815]
[1644601911236,41.79634356,105.74,105.68,8.38366791]
[1644601911453,4.729,105.73,105.67,2.64200602]
[1644601911633,4.729,105.73,105.66,7.37100602]
[1644601911833,13.700077,105.72,105.66,4.729]
[1644601912034,4.73,105.71,105.66,4.729]
[1644601912237,43.25493061,105.7,105.66,4.729]
[1644601912836,43.25493061,105.7,105.65,4.731]
[1644601913033,43.25493061,105.7,105.63,26.47770602]
[1644601913034,43.25493061,105.7,105.64,13.37300602]
[1644601913234,24.38567464,105.7,105.65,2.64200602]
[1644601913434,24.38567464,105.7,105.65,39.9727636]
[1644601913634,4.731,105.75,105.65,40.2227636]
[1644601913836,14.1963,105.73,105.65,2.38366791]
[1644601914048,7.11366791,105.72,105.64,4.731]
[1644601914244,13.65,105.71,105.64,4.731]
[1644601914446,4.731,105.7,105.64,4.731]
[1644601914849,38.99704406,105.69,105.64,39.35624598]
[1644601915044,38.99704406,105.69,105.59,56.63]
[1644601915248,38.99704406,105.69,105.6,2.64200602]
[1644601915445,38.99704406,105.69,105.6,24.01398024]
[1644601915647,4.732,105.68,105.6,28.99598024]
[1644601915847,4.732,105.68,105.6,4.982]
[1644601916147,43.19742898,105.67,105.61,37.87326447]
[1644601916345,43.19742898,105.67,105.62,4.733]
[1644601916745,43.19742898,105.67,105.62,4.983]
[1644601917144,43.19742898,105.67,105.63,35.22963468]
[1644601917347,43.19742898,105.67,105.64,4.732]
[1644601917545,4.732,105.71,105.64,4.732]
[1644601917745,18.9331,105.71,105.64,4.982]
[1644601917945,18.9331,105.71,105.64,4.732]
[1644601918347,18.9331,105.71,105.65,0.024]
[1644601918747,18.9331,105.71,105.61,0.024]
[1644601918946,42.45026494,105.7,105.61,0.024]
[1644601919149,47.97913196,105.68,105.61,0.024]
[1644601919347,42.50454029,105.66,105.61,0.024]
[1644601920967,42.50454029,105.66,105.61,46.07154292]
[1644601921167,42.50454029,105.66,105.61,46.32154292]
[1644601921367,42.50454029,105.66,105.61,0.024]
[1644601921965,4.733,105.68,105.61,6.024]
[1644601922166,14.2028,105.69,105.6,0.25]
[1644601922167,14.2028,105.69,105.62,4.732]
[1644601922366,14.2028,105.69,105.62,6.0]
[1644601922666,14.2028,105.69,105.63,0.024]
[1644601922866,47.86248731,105.68,105.63,0.024]
[1644601923069,47.86248731,105.68,105.61,0.024]
[1644601923267,62.06658731,105.68,105.61,0.024]
[1644601923470,57.33458731,105.68,105.61,4.756]
[1644601923670,4.732,105.67,105.62,0.024]
[1644601923869,4.732,105.67,105.61,4.756]
[1644601924070,4.732,105.67,105.61,4.732]
[1644601924372,41.21947054,105.66,105.61,4.732]
[1644601924571,4.733,105.65,105.61,4.732]
[1644601924770,4.733,105.65,105.58,4.757]
[1644601924968,4.733,105.65,105.59,0.024]
[1644601925572,47.31260196,105.64,105.59,0.024]
[1644601925774,47.31260196,105.64,105.57,0.024]
[1644601925775,35.78584596,105.64,105.57,0.024]
[1644601925971,4.734,105.63,105.57,0.024]
[1644601926172,46.20794854,105.62,105.57,0.024]
[1644601926772,46.20794854,105.62,105.57,6.024]
[1644601927174,46.20794854,105.62,105.58,46.73638955]
[1644601927373,46.20794854,105.62,105.57,6.024]
[1644601927573,46.20794854,105.62,105.57,6.274]
[1644601928477,46.20794854,105.62,105.57,54.35007059]
[1644601928877,46.20794854,105.62,105.57,6.024]
[1644601929580,60.42004854,105.62,105.57,6.024]
[1644601929779,65.15504854,105.62,105.57,0.024]
[1644601929981,67.53871645,105.62,105.55,0.024]
[1644601930179,13.554525,105.61,105.55,0.024]
[1644601930379,13.554525,105.61,105.51,25.41280602]
[1644601930380,4.735,105.6,105.52,0.024]
[1644601930583,13.65,105.59,105.52,0.024]
[1644601930783,18.9543,105.58,105.52,0.024]
[1644601930981,41.6858,105.58,105.49,0.024]
[1644601931282,34.94208944,105.57,105.5,0.024]
[1644601931480,4.737,105.56,105.5,0.024]
[1644601931881,14.2212,105.55,105.48,7.65300602]
[1644601932084,14.2212,105.55,105.48,7.62900602]
[1644601932282,42.58771073,105.54,105.49,40.33219519]
[1644601932482,42.58771073,105.54,105.5,0.024]
[1644601932683,42.58771073,105.54,105.5,4.762]
[1644601932882,42.58771073,105.54,105.5,4.738]
[1644601933282,23.68831824,105.54,105.5,4.738]
[1644601933683,23.68831824,105.54,105.49,4.738]
[1644601933885,23.68831824,105.54,105.49,4.762]
[1644601934082,23.68831824,105.54,105.49,4.738]
[1644601934486,4.738,105.53,105.48,0.024]
[1644601934688,43.4840142,105.52,105.47,0.024]
[1644601934885,43.4840142,105.52,105.46,2.64200602]
[1644601935083,35.80323266,105.5,105.46,2.64200602]
[1644601935301,35.80323266,105.5,105.47,0.024]
[1644601935499,6.06439994,105.49,105.45,0.024]
[1644601935697,10.80439994,105.49,105.44,14.247]
[1644601935899,6.06439994,105.49,105.44,14.247]
[1644601936099,6.06439994,105.49,105.44,16.63066791]
[1644601936404,6.06439994,105.49,105.44,0.024]
[1644601936798,6.06439994,105.49,105.44,4.764]
[1644601937008,3.03219997,105.49,105.45,2.38366791]
[1644601937207,41.78665699,105.5,105.45,2.38366791]
[1644601937403,56.01495699,105.5,105.46,0.024]
[1644601937609,56.01495699,105.5,105.44,0.024]
[1644601937610,4.74,105.49,105.44,0.024]
[1644601937804,4.74,105.49,105.43,0.47406504]
[1644601937999,41.78665699,105.5,105.43,0.47406504]
[1644601938200,41.78665699,105.5,105.44,0.024]
[1644601938401,41.78665699,105.5,105.44,4.764]